[Event "Germany Countries-chT Youth 2022"]
[Site "Wiesbaden"]
[Date "2022.10.03"]
[Round "5"]
[White "Meng, Yuxuan"]
[Black "Huppert, Anna"]
[Result "1-0"]
[ECO "C02"]
[WhiteElo "1472"]
[BlackElo "1417"]
[Annotator "NA COMBH"]
[PlyCount "111"]
[EventDate "2022.09.28"]
[EventType "team-tourn"]
[EventRounds "7"]
[EventCountry "GER"]
[SourceTitle "playchess.com"]
[Source "ChessBase"]
[SourceQuality "1"]
[TimeControl "40/5400+30:1800+30"]

1. e4 {[%emt 0:00:03]} e6 {[%emt 0:00:07]} 2. d4 {[%emt 0:00:04]} d5 {[%emt 0:00:06]} 3. e5 {[%emt 0:00:04]} c5 {[%emt 0:00:07]} 4. c3 {[%emt 0:00:04]} Nc6 {[%emt 0:00:05]} 5. Nf3 {[%emt 0:00:06]} Bd7 {[%emt 0:00:13]} 6. Be2 {[%emt 0:00:43]} f6 {[%emt 0:00:19]} 7. O-O {[%emt 0:04:44]} Qc7 {[%emt 0:01:55]} 8. exf6 {[%emt 0:08:46]} Nxf6 {[%emt 0:01:32]} 9. Re1 {[%emt 0:02:42]} Bd6 {[%emt 0:02:37]} 10. Bd3 {[%emt 0:04:31]} c4 {[%emt 0:10:19]} 11. Bf5 {[%emt 0:13:45]} O-O-O {[%emt 0:06:02]} 12. Bc2 {[%emt 0:10:12]} e5 {[%emt 0:11:13]} 13. dxe5 {[%emt 0:12:32]} Nxe5 {[%emt 0:02:09]} 14. Nbd2 {[%emt 0:03:11]} Bg4 {[%emt 0:09:36]} 15. h3 {[%emt 0:04:55]} Bh5 {[%emt 0:03:06]} 16. Rb1 {[%emt 0:13:48]} g5 {[%emt 0:16:28]} 17. b3 {[%emt 0:07:28]} g4 {[%emt 0:14:56]} 18. Nxe5 {[%emt 0:04:06]} Bxe5 {[%emt 0:01:45]} 19. Bf5+ {[%emt 0:01:57]} Kb8 {[%emt 0:00:13]} 20. hxg4 {[%emt 0:01:09]} Bg6 {[%emt 0:03:38]} 21. Qf3 {[%emt 0:03:10]} Rhe8 {[%emt 0:04:17]} 22. g3 {[%emt 0:01:28]} Bxg3 {[%emt 0:02:27]} 23. Rxe8 {[%emt 0:00:31]} Bh2+ {[%emt 0:00:04]} 24. Kg2 {[%emt 0:00:20]} Rxe8 {[%emt 0:00:16]} 25. Bxg6 {[%emt 0:00:20]} hxg6 {[%emt 0:05:01]} 26. Qxf6 {[%emt 0:00:08]} Bf4 {[%emt 0:02:58]} 27. Nf3 {[%emt 0:00:57]} Bxc1 {[%emt 0:01:01]} 28. Rxc1 {[%emt 0:00:10]} cxb3 {[%emt 0:00:37]} 29. axb3 {[%emt 0:00:15]} Rg8 {[%emt 0:01:01]} 30. Rh1 {[%emt 0:00:32]} Qc8 {[%emt 0:00:37]} 31. Ne5 {[%emt 0:00:51]} g5 {[%emt 0:00:31]} 32. Qd6+ {[%emt 0:00:59]} Ka8 {[%emt 0:00:23]} 33. Qxd5 {[%emt 0:00:26]} Rd8 {[%emt 0:00:14]} 34. Qc4 {[%emt 0:00:31]} Qxc4 {[%emt 0:00:28]} 35. Nxc4 {[%emt 0:00:10]} b5 {[%emt 0:00:07]} 36. Ne5 {[%emt 0:00:32]} Kb7 {[%emt 0:00:36]} 37. Nf7 {[%emt 0:00:31]} Rd3 {[%emt 0:00:29]} 38. Nxg5 {[%emt 0:00:31]} Rxc3 {[%emt 0:00:04]} 39. Ne4 {[%emt 0:00:30]} Rc2 {[%emt 0:00:37]} 40. Rb1 {[%emt 0:00:28]} a5 {[%emt 0:00:24]} 41. g5 {[%emt 0:30:27]} Rc6 {[%emt 0:30:34]} 42. f4 {[%emt 0:00:47]} Kc7 {[%emt 0:01:18]} 43. Kf3 {[%emt 0:00:53]} Kd7 {[%emt 0:00:30]} 44. Re1 {[%emt 0:00:55]} a4 {[%emt 0:00:53]} 45. bxa4 {[%emt 0:00:12]} bxa4 {[%emt 0:00:07]} 46. Ra1 {[%emt 0:00:20]} Ke6 {[%emt 0:00:00]} 47. Rxa4 {[%emt 0:00:00]} Rc1 {[%emt 0:00:00]} 48. Kg4 {[%emt 0:00:00]} Rg1+ {[%emt 0:00:00]} 49. Ng3 {[%emt 0:00:00]} Rd1 {[%emt 0:00:00]} 50. f5+ {[%emt 0:00:00]} Kf7 {[%emt 0:00:00]} 51. g6+ {[%emt 0:00:00]} Kg7 {[%emt 0:00:00]} 52. Kg5 {[%emt 0:00:00]} Rd5 {[%emt 0:00:00]} 53. Nh5+ {[%emt 0:00:00]} Kf8 {[%emt 0:00:00]} 54. g7+ {[%emt 0:00:00]} Kf7 {[%emt 0:00:00]} 55. Ra7+ {[%emt 0:00:00]} Kg8 {[%emt 0:00:00]} 56. Nf6# {[%emt 0:00:00]} 1-0

[Event "Germany Countries-chT Youth 2022"]
[Site "Wiesbaden"]
[Date "2022.10.03"]
[Round "5"]
[White "Muller, Magnus"]
[Black "Lange, Jannis"]
[Result "0-1"]
[ECO "A45"]
[WhiteElo "1464"]
[BlackElo "2085"]
[Annotator "TA"]
[PlyCount "58"]
[EventDate "2022.09.28"]
[EventType "team-tourn"]
[EventRounds "7"]
[EventCountry "GER"]
[SourceTitle "playchess.com"]
[Source "ChessBase"]
[SourceQuality "1"]
[TimeControl "40/5400+30:1800+30"]

{[%evp 9,58,25,39,29,32,33,52,56,65,33,32,43,40,0,13,19,13,11,43,19,27,18,32,29,56,55,76,83,68,68,122,61,122,122,136,113,184,102,118,106,121,21,91,91,87,83,86,84,120,-29998,-29999]} 1. d4 {[%emt 0:00:37]} Nf6 {[%emt 0:00:06]} 2. Nc3 {[%emt 0:00:13]} d5 {[%emt 0:01:56]} 3. Bf4 {[%emt 0:00:05]} c5 {[%emt 0:01:31]} 4. e4 {[%emt 0:00:19]} e6 {[%emt 0:07:43]} 5. Nb5 {[%emt 0:15:46]} Na6 $1 {[%emt 0:00:20]} 6. e5 {[%emt 0:00:27] D00: 1 d4 d5: Unusual lines.} Nd7 {[%emt 0:01:32][%cal Bf6d7,Bd7b8,Bb8c6][%mdl 32]} 7. c3 {[%emt 0:06:32] [#]} cxd4 $146 {[%emt 0:20:33]} ({Predecessor:} 7... Be7 8. Nf3 Qb6 9. a4 cxd4 10. cxd4 Nb4 11. Rc1 O-O 12. Be2 a6 13. Nc3 f6 14. exf6 Bxf6 {0-1 (78) Fiorito,F (2357)-Iskusnyh,S (2473) Chess.com INT 2022}) 8. cxd4 {[%emt 0:04:09] White is slightly better.} Bb4+ {[%emt 0:09:08]} 9. Bd2 {[%emt 0:00:44] Threatens to win with Bxb4.} O-O $1 {[%emt 0:06:02]} 10. f4 {[%emt 0:07:19]} Be7 {[%emt 0:03:00]} 11. Qb3 {[%emt 0:07:21]} Ndb8 {[%emt 0:14:54]} 12. Nf3 {[%emt 0:00:57]} Nc6 {[%emt 0:00:12]} 13. a3 {[%emt 0:02:43]} Nc7 {[%emt 0:00:38]} (13... Bd7) 14. Nxc7 {[%emt 0:05:38]} Qxc7 {[%emt 0:00:05]} 15. Rc1 {[%emt 0:00:15]} Qd8 {[%emt 0:05:02]} 16. Bd3 {[%emt 0:01:08]} f5 {[%emt 0:07:47]} 17. exf6 {[%emt 0:05:00]} gxf6 {[%emt 0:00:58]} 18. O-O {[%emt 0:02:23]} Rf7 {[%emt 0:00:51]} 19. Bc3 {[%emt 0:01:43][%cal Of4f5]} Rg7 {[%emt 0:05:59]} (19... f5) ({Black should play} 19... f5 $14) 20. Rce1 {[%emt 0:01:24]} (20. f5 $1 $16) 20... Kh8 {[%emt 0:00:23]} (20... f5 $1 $14) 21. f5 $1 $16 {[%emt 0:06:06]} Qg8 {[%emt 0:00:18]} 22. Re2 {[%emt 0:02:24]} Bd6 {[%emt 0:00:09] [#]} (22... exf5 $16 23. Nh4 f4) 23. Qc2 {[%emt 0:04:47]} (23. Rfe1 $1 $18) 23... exf5 {[%emt 0:02:49]} 24. Bxf5 {[%emt 0:02:56]} Ne7 {[%emt 0:00:41] [#]} 25. Bxc8 {[%emt 0:02:10]} (25. Nh4 $1 $16) 25... Rxc8 {[%emt 0:02:50]} (25... Qxc8 $11 {keeps the balance.} 26. Kh1 Qg4) 26. Nh4 {[%emt 0:05:34]} Rf8 27. Nf5 Nxf5 {[%emt 0:01:10]} 28. Qxf5 {[%emt 0:00:35]} Re8 {[%emt 0:01:04]} 29. Rxe8 {[%emt 0:02:11][%mdl 8192]} (29. Rfe1 $16 Rxe2 30. Rxe2) 29... Rxg2+ {[%emt 0:00:10] Weighted Error Value: White=0.47/Black=0.20 (precise)} 0-1

[Event "Germany Countries-chT Youth 2022"]
[Site "Wiesbaden"]
[Date "2022.10.03"]
[Round "5"]
[White "Mueller, Sophie Charlotte"]
[Black "Pflugradt, Natalie"]
[Result "1/2-1/2"]
[ECO "E32"]
[WhiteElo "1435"]
[BlackElo "1518"]
[Annotator "NA RC COMBH"]
[PlyCount "112"]
[EventDate "2022.09.28"]
[EventType "team-tourn"]
[EventRounds "7"]
[EventCountry "GER"]
[SourceTitle "playchess.com"]
[Source "ChessBase"]
[SourceQuality "1"]
[TimeControl "40/5400+30:1800+30"]

1. d4 {[%emt 0:00:03]} Nf6 {[%emt 0:00:13]} 2. c4 {[%emt 0:00:08]} e6 {[%emt 0:00:15]} 3. Nc3 {[%emt 0:00:08]} Bb4 {[%emt 0:00:47]} 4. Qc2 {[%emt 0:00:09]} Bxc3+ {[%emt 0:02:23]} 5. bxc3 {[%emt 0:01:00]} d5 {[%emt 0:04:04]} 6. Bg5 {[%emt 0:00:54]} h6 {[%emt 0:04:16]} 7. Bh4 {[%emt 0:01:33]} Nbd7 {[%emt 0:05:41]} 8. cxd5 {[%emt 0:03:32]} exd5 {[%emt 0:05:36]} 9. Nf3 {[%emt 0:03:52]} Qe7 {[%emt 0:05:16]} 10. e3 {[%emt 0:02:47]} Qe6 {[%emt 0:11:49]} 11. Bd3 {[%emt 0:03:27]} Ne4 {[%emt 0:06:05]} 12. Nd2 {[%emt 0:10:44]} Ndf6 {[%emt 0:04:36]} 13. Bxf6 {[%emt 0:00:36]} Nxf6 {[%emt 0:00:19]} 14. O-O {[%emt 0:01:03]} O-O {[%emt 0:02:01]} 15. c4 {[%emt 0:05:14]} c6 {[%emt 0:06:38]} 16. c5 {[%emt 0:04:03]} Bd7 {[%emt 0:02:19]} 17. Rfb1 {[%emt 0:04:07]} Rab8 {[%emt 0:10:14]} 18. a4 {[%emt 0:03:52]} b6 {[%emt 0:02:05]} 19. cxb6 {[%emt 0:05:38]} axb6 {[%emt 0:00:19]} 20. a5 {[%emt 0:01:20]} bxa5 {[%emt 0:08:02]} 21. Rxb8 {[%emt 0:00:22]} Rxb8 {[%emt 0:00:09]} 22. Rxa5 {[%emt 0:00:11]} Qd6 {[%emt 0:02:45]} 23. Rc5 {[%emt 0:07:38]} Ne8 {[%emt 0:03:29]} 24. Nf3 {[%emt 0:05:09]} Rc8 {[%emt 0:06:18]} 25. Ne5 {[%emt 0:07:54]} Nf6 {[%emt 0:01:24]} 26. h3 {[%emt 0:07:38]} Kf8 {[%emt 0:00:15]} 27. Bf5 {[%emt 0:04:08]} Ke7 {[%emt 0:03:37]} 28. Bxd7 {[%emt 0:04:37]} Nxd7 {[%emt 0:00:04]} 29. Rxc6 {[%emt 0:01:55]} Rxc6 {[%emt 0:00:18]} 30. Nxc6+ {[%emt 0:00:07]} Ke6 {[%emt 0:00:38]} 31. Nd8+ {[%emt 0:02:18]} Ke7 {[%emt 0:00:26]} 32. Nb7 {[%emt 0:00:10]} Qb6 {[%emt 0:00:41]} 33. Nc5 {[%emt 0:00:52]} Kd6 {[%emt 0:01:25]} 34. Nxd7 {[%emt 0:01:10]} Kxd7 {[%emt 0:00:02]} 35. Qf5+ {[%emt 0:00:39]} Qe6 {[%emt 0:00:11]} 36. Qxe6+ {[%emt 0:00:08]} Kxe6 {[%emt 0:00:14]} 37. g4 {[%emt 0:00:29]} g5 {[%emt 0:01:06]} 38. Kg2 f6 {[%emt 0:01:29]} 39. Kg3 {[%emt 0:01:22]} f5 {[%emt 0:00:24]} 40. f3 {[%emt 0:08:36]} Kf6 {[%emt 0:01:13]} 41. f4 {[%emt 0:08:08]} Kg6 {[%emt 0:00:39]} 42. h4 {[%emt 0:04:22]} fxg4 {[%emt 0:01:47]} 43. fxg5 {[%emt 0:05:30]} hxg5 {[%emt 0:00:52]} 44. Kxg4 {[%emt 0:00:37]} gxh4 {[%emt 0:00:15]} 45. Kxh4 {[%emt 0:00:03]} Kf5 {[%emt 0:00:15]} 46. Kg3 {[%emt 0:00:11]} Kg5 {[%emt 0:01:02]} 47. Kg2 {[%emt 0:02:54]} Kg6 {[%emt 0:00:28]} 48. Kf1 {[%emt 0:01:29]} Kf7 {[%emt 0:00:54]} 49. Ke2 {[%emt 0:01:59]} Ke6 {[%emt 0:00:51]} 50. Kd2 {[%emt 0:00:13]} Kd7 {[%emt 0:02:33]} 51. Kd3 {[%emt 0:00:54]} Kd6 {[%emt 0:00:35]} 52. e4 {[%emt 0:02:18]} dxe4+ {[%emt 0:00:04]} 53. Kxe4 {[%emt 0:00:10]} Ke6 {[%emt 0:00:57]} 54. d5+ {[%emt 0:01:22]} Kd7 {[%emt 0:01:54]} 55. Ke5 {[%emt 0:00:56]} Ke7 {[%emt 0:00:55]} 56. d6+ {[%emt 0:01:23]} Kd8 {[%emt 0:00:35]} 1/2-1/2

[Event "Germany Countries-chT Youth 2022"]
[Site "Wiesbaden"]
[Date "2022.10.03"]
[Round "5"]
[White "Halas, Neele Zoe"]
[Black "Neininger, Sarah"]
[Result "0-1"]
[ECO "B13"]
[WhiteElo "1392"]
[BlackElo "1589"]
[Annotator "NA RC COMBH"]
[PlyCount "92"]
[EventDate "2022.09.28"]
[EventType "team-tourn"]
[EventRounds "7"]
[EventCountry "GER"]
[SourceTitle "playchess.com"]
[Source "ChessBase"]
[SourceQuality "1"]
[TimeControl "40/5400+30:1800+30"]

1. e4 {[%emt 0:00:02]} c6 {[%emt 0:00:06]} 2. d4 {[%emt 0:00:08]} d5 {[%emt 0:00:04]} 3. exd5 {[%emt 0:00:15]} cxd5 {[%emt 0:00:11]} 4. Bd3 {[%emt 0:00:12]} Qc7 {[%emt 0:00:40]} 5. c3 {[%emt 0:00:34]} Nc6 {[%emt 0:00:16]} 6. Ne2 {[%emt 0:00:46]} Bg4 {[%emt 0:11:06]} 7. f3 {[%emt 0:02:22]} Bd7 {[%emt 0:01:57]} 8. O-O {[%emt 0:01:23]} e6 {[%emt 0:00:38]} 9. Bf4 {[%emt 0:00:47]} Bd6 {[%emt 0:01:26]} 10. Bxd6 {[%emt 0:00:35]} Qxd6 {[%emt 0:00:08]} 11. Nd2 {[%emt 0:02:44]} Nf6 {[%emt 0:02:31]} 12. Nb3 {[%emt 0:03:26]} b6 {[%emt 0:02:35]} 13. Qc2 {[%emt 0:02:29]} O-O {[%emt 0:02:21]} 14. Rae1 {[%emt 0:01:29]} Rfe8 {[%emt 0:01:57]} 15. Ng3 {[%emt 0:12:05]} h6 {[%emt 0:14:38]} 16. Re2 {[%emt 0:06:02]} Rac8 {[%emt 0:09:39]} 17. Qb1 {[%emt 0:02:14]} h5 {[%emt 0:08:16]} 18. Rfe1 {[%emt 0:06:34]} h4 {[%emt 0:02:20]} 19. Nh1 {[%emt 0:00:57]} Qf4 {[%emt 0:08:25]} 20. Qc1 {[%emt 0:07:07]} Nh5 {[%emt 0:03:07]} 21. Qxf4 {[%emt 0:13:33]} Nxf4 {[%emt 0:00:08]} 22. Re3 {[%emt 0:00:09]} Nxd3 {[%emt 0:03:09]} 23. Rxd3 {[%emt 0:00:04]} Ne7 {[%emt 0:00:59]} 24. g3 {[%emt 0:03:05]} Ng6 {[%emt 0:02:24]} 25. Rde3 {[%emt 0:01:10]} hxg3 {[%emt 0:04:16]} 26. hxg3 {[%emt 0:00:49]} Kh7 {[%emt 0:02:44]} 27. Nf2 {[%emt 0:00:21]} Kh6 {[%emt 0:01:07]} 28. Kg2 {[%emt 0:01:24]} Kg5 {[%emt 0:01:33]} 29. Ng4 {[%emt 0:07:11]} f6 {[%emt 0:03:55]} 30. Nf2 {[%emt 0:04:55]} e5 {[%emt 0:02:30]} 31. Nh3+ {[%emt 0:06:37]} Bxh3+ {[%emt 0:00:36]} 32. Kxh3 {[%emt 0:00:06]} Kf5 {[%emt 0:01:00]} 33. dxe5 {[%emt 0:04:12]} fxe5 {[%emt 0:01:15]} 34. Nd4+ {[%emt 0:00:46]} Kf6 {[%emt 0:00:51]} 35. Kg4 {[%emt 0:01:19]} Rc4 {[%emt 0:04:36]} 36. b3 {[%emt 0:01:32]} Rc7 {[%emt 0:00:30]} 37. Nb5 {[%emt 0:00:33]} Rce7 {[%emt 0:01:23]} 38. Nd6 {[%emt 0:00:29]} Rd8 {[%emt 0:00:19]} 39. Nf5 {[%emt 0:00:12]} Rc7 {[%emt 0:01:13]} 40. Rd1 {[%emt 0:02:21]} Rcd7 {[%emt 0:01:32]} 41. Red3 {[%emt 0:31:13]} e4 {[%emt 0:03:07]} 42. Rxd5 {[%emt 0:00:00]} Rxd5 {[%emt 0:02:17]} 43. Rxd5 {[%emt 0:00:00]} Rxd5 {[%emt 0:00:09]} 44. fxe4 {[%emt 0:00:00]} Rd3 {[%emt 0:01:58]} 45. c4 {[%emt 0:00:00]} Ne5+ {[%emt 0:00:37]} 46. Kf4 {[%emt 0:00:00]} g5# 0-1

[Event "Germany Countries-chT Youth 2022"]
[Site "Wiesbaden"]
[Date "2022.10.03"]
[Round "5"]
[White "Richter, Johanna"]
[Black "Trunz, Tamila"]
[Result "0-1"]
[ECO "E32"]
[WhiteElo "1355"]
[BlackElo "1521"]
[Annotator "NA RC COMBH"]
[PlyCount "56"]
[EventDate "2022.09.28"]
[EventType "team-tourn"]
[EventRounds "7"]
[EventCountry "GER"]
[SourceTitle "playchess.com"]
[Source "ChessBase"]
[SourceQuality "1"]
[TimeControl "40/5400+30:1800+30"]

1. d4 {[%emt 0:00:01]} Nf6 {[%emt 0:00:06]} 2. c4 {[%emt 0:00:06]} e6 {[%emt 0:00:05]} 3. Nc3 {[%emt 0:00:10]} Bb4 {[%emt 0:00:05]} 4. Qc2 {[%emt 0:00:05]} b6 {[%emt 0:02:00]} 5. a3 {[%emt 0:00:44]} Bxc3+ {[%emt 0:00:20]} 6. Qxc3 {[%emt 0:00:24]} Bb7 {[%emt 0:01:33]} 7. Bg5 {[%emt 0:00:32]} h6 {[%emt 0:00:49]} 8. Bh4 {[%emt 0:01:55]} d6 {[%emt 0:01:33]} 9. e3 {[%emt 0:07:50]} Nbd7 {[%emt 0:00:25]} 10. Ne2 {[%emt 0:03:33]} Rc8 {[%emt 0:02:15]} 11. f3 {[%emt 0:03:06]} c5 {[%emt 0:05:09]} 12. Qd3 {[%emt 0:09:29]} cxd4 {[%emt 0:02:18]} 13. Nxd4 {[%emt 0:05:34]} Ne5 {[%emt 0:03:06]} 14. Qc2 {[%emt 0:02:43]} O-O {[%emt 0:05:27]} 15. Be2 {[%emt 0:03:45]} d5 {[%emt 0:01:57]} 16. Qa4 {[%emt 0:02:09]} Nxc4 {[%emt 0:10:20]} 17. Bxc4 {[%emt 0:00:27]} Rxc4 {[%emt 0:00:39]} 18. Qxa7 {[%emt 0:00:37]} Qc7 {[%emt 0:02:07]} 19. Bg3 e5 {[%emt 0:02:25]} 20. O-O {[%emt 0:03:17]} Ra8 {[%emt 0:01:50]} 21. Bxe5 {[%emt 0:00:36]} Rxa7 {[%emt 0:03:17]} 22. Bxc7 {[%emt 0:00:57]} Rxc7 {[%emt 0:00:12]} 23. Nb5 {[%emt 0:00:02]} Ba6 {[%emt 0:00:15]} 24. Nxc7 {[%emt 0:00:55]} Bxf1 {[%emt 0:00:24]} 25. Nxd5 Nxd5 26. Kxf1 {[%emt 0:01:34]} Nxe3+ {[%emt 0:00:43]} 27. Kf2 {[%emt 0:00:32]} Nc4 {[%emt 0:00:13]} 28. Rb1 {[%emt 0:01:14]} Rd7 0-1

[Event "Germany Countries-chT Youth 2022"]
[Site "Wiesbaden"]
[Date "2022.10.03"]
[Round "5"]
[White "Mukazhanov, Mansur"]
[Black "Fischer, Darja"]
[Result "0-1"]
[ECO "B28"]
[WhiteElo "1319"]
[BlackElo "1738"]
[Annotator "NA RC COMBH"]
[PlyCount "110"]
[EventDate "2022.09.28"]
[EventType "team-tourn"]
[EventRounds "7"]
[EventCountry "GER"]
[SourceTitle "playchess.com"]
[Source "ChessBase"]
[SourceQuality "1"]
[TimeControl "40/5400+30:1800+30"]

1. e4 {[%emt 0:00:03]} c5 {[%emt 0:00:03]} 2. Nf3 {[%emt 0:00:06]} a6 {[%emt 0:00:02]} 3. d4 {[%emt 0:00:32]} cxd4 {[%emt 0:00:05]} 4. Nxd4 {[%emt 0:00:10]} Nf6 {[%emt 0:00:03]} 5. Nc3 {[%emt 0:00:07]} e5 {[%emt 0:00:06]} 6. Nb3 {[%emt 0:01:43]} Bb4 {[%emt 0:00:24]} 7. Bd3 {[%emt 0:00:31]} O-O {[%emt 0:00:31]} 8. Bd2 {[%emt 0:00:14]} Qc7 {[%emt 0:02:16]} 9. O-O {[%emt 0:00:14]} Bxc3 {[%emt 0:02:32]} 10. Bxc3 {[%emt 0:00:09]} d6 {[%emt 0:00:35]} 11. Qd2 {[%emt 0:00:16]} Nc6 {[%emt 0:02:59]} 12. Rad1 {[%emt 0:00:25]} Be6 {[%emt 0:05:16]} 13. f3 {[%emt 0:00:23]} Rfd8 {[%emt 0:02:22]} 14. Qc1 {[%emt 0:00:52]} Rac8 {[%emt 0:06:55]} 15. Be1 {[%emt 0:00:53]} Nd7 {[%emt 0:08:28]} 16. c3 {[%emt 0:00:22]} Nc5 {[%emt 0:02:20]} 17. Nxc5 {[%emt 0:00:20]} dxc5 {[%emt 0:00:02]} 18. Bb1 {[%emt 0:00:21]} Rxd1 {[%emt 0:03:18]} 19. Qxd1 {[%emt 0:00:09]} Rd8 {[%emt 0:00:13]} 20. Qc2 {[%emt 0:01:03]} Qd6 {[%emt 0:06:07]} 21. f4 {[%emt 0:00:12]} Bc4 {[%emt 0:05:04]} 22. Rf3 {[%emt 0:00:57]} exf4 {[%emt 0:06:07]} 23. e5 {[%emt 0:00:40]} Qg6 {[%emt 0:00:33]} 24. b3 {[%emt 0:04:00]} Nxe5 {[%emt 0:03:01]} 25. Rxf4 {[%emt 0:08:10]} Bd3 {[%emt 0:04:31]} 26. Qd2 {[%emt 0:00:07]} c4 {[%emt 0:06:45]} 27. bxc4 {[%emt 0:00:44]} Qb6+ {[%emt 0:00:32]} 28. Rd4 {[%emt 0:01:09]} Rxd4 {[%emt 0:00:30]} 29. cxd4 {[%emt 0:01:10]} Bxb1 {[%emt 0:04:57]} 30. c5 {[%emt 0:00:34]} Nc4 {[%emt 0:03:24]} 31. cxb6 {[%emt 0:02:25]} Nxd2 {[%emt 0:00:06]} 32. Bxd2 {[%emt 0:00:08]} Bxa2 {[%emt 0:00:06]} 33. Bb4 {[%emt 0:00:30]} f5 {[%emt 0:00:42]} 34. Kf2 {[%emt 0:00:05]} Kf7 {[%emt 0:00:04]} 35. Ke3 {[%emt 0:00:18]} Ke6 {[%emt 0:00:10]} 36. Kf4 {[%emt 0:00:36]} Kd5 {[%emt 0:02:18]} 37. Bc5 {[%emt 0:00:09]} Bb1 {[%emt 0:00:47]} 38. h4 {[%emt 0:00:18]} Be4 {[%emt 0:01:31]} 39. g3 {[%emt 0:00:17]} a5 {[%emt 0:03:13]} 40. Kg5 {[%emt 0:00:45]} a4 {[%emt 0:00:35]} 41. h5 {[%emt 0:30:08]} Kc4 {[%emt 0:31:52]} 42. Bf8 {[%emt 0:00:36]} g6 {[%emt 0:03:23]} 43. h6 {[%emt 0:00:07]} Kxd4 {[%emt 0:00:29]} 44. Kf6 {[%emt 0:00:14]} Ke3 {[%emt 0:05:15]} 45. Kg7 {[%emt 0:00:41]} f4 {[%emt 0:02:19]} 46. gxf4 {[%emt 0:01:05]} Kxf4 {[%emt 0:04:21]} 47. Kxh7 {[%emt 0:00:23]} g5+ {[%emt 0:00:05]} 48. Kg7 {[%emt 0:00:05]} g4 {[%emt 0:00:08]} 49. h7 {[%emt 0:00:40]} Bxh7 {[%emt 0:00:04]} 50. Kxh7 {[%emt 0:00:07]} g3 {[%emt 0:00:05]} 51. Kg7 {[%emt 0:01:10]} g2 {[%emt 0:00:14]} 52. Bc5 {[%emt 0:00:03]} a3 {[%emt 0:00:09]} 53. Kf7 {[%emt 0:00:03]} a2 {[%emt 0:00:05]} 54. Ke7 {[%emt 0:00:27]} a1=Q {[%emt 0:00:21]} 55. Kd7 {[%emt 0:00:16]} Qa4+ {[%emt 0:00:18]} 0-1

[Event "Germany Countries-chT Youth 2022"]
[Site "Wiesbaden"]
[Date "2022.10.03"]
[Round "5"]
[White "Petrovsky, Vadim"]
[Black "Burian, Simon"]
[Result "1-0"]
[ECO "C76"]
[WhiteElo "1287"]
[BlackElo "2196"]
[Annotator "TA"]
[PlyCount "69"]
[EventDate "2022.09.28"]
[EventType "team-tourn"]
[EventRounds "7"]
[EventCountry "GER"]
[TimeControl "40/5400+30:1800+30"]

{[%evp 21,69,28,30,0,3,4,19,11,25,0,106,88,97,106,102,97,98,69,81,74,77,79,91,70,72,87,89,61,60,42,56,51,181,190,321,341,504,596,624,621,621,346,616,606,592,583,608,210,547,520]} 1. e4 {[%emt 0:00:03]} e5 {[%emt 0:00:08]} 2. Nf3 {[%emt 0:01:09]} Nc6 {[%emt 0:00:06]} 3. Bb5 {[%emt 0:00:42]} g6 {[%emt 0:00:08]} 4. c3 {[%emt 0:01:29]} a6 {[%emt 0:00:09]} 5. Ba4 {[%emt 0:00:36]} d6 {[%emt 0:00:24]} 6. d4 {[%emt 0:00:31]} Bd7 {[%emt 0:00:21]} 7. O-O {[%emt 0:01:54]} Bg7 {[%emt 0:00:25]} 8. d5 {[%emt 0:03:53]} Nce7 {[%emt 0:03:19]} 9. Bxd7+ {[%emt 0:04:59]} Qxd7 {[%emt 0:00:08]} 10. c4 {[%emt 0:00:10]} Nf6 {[%emt 0:06:15]} 11. Nc3 {[%emt 0:00:30]} O-O {[%emt 0:01:01]} 12. Ne1 {[%emt 0:02:16][%cal Bf3e1,Be1c2,Bc2e3,Be3d5][%mdl 32] C76: Ruy Lopez: Deferred Steinitz: 5 c3 Bd7 6 d4 g6.} b5 {[%emt 0:06:35]} 13. cxb5 {[%emt 0:11:41]} axb5 {[%emt 0:00:07] Hoping for ...b4.} 14. Nc2 {[%emt 0:11:53] The position is equal.} c6 {[%emt 0:26:44]} 15. dxc6 {[%emt 0:01:37] [#]} Qxc6 $146 {[%emt 0:00:29]} (15... Nxc6 $11 16. Ne3 Rab8) ({Predecessor:} 15... Nxc6 16. Ne3 Nd4 17. Ned5 Nxd5 18. Nxd5 Qb7 19. Be3 f5 20. Bxd4 exd4 21. Qb3 Kh8 22. exf5 Rxf5 {1-0 (50) Kulaots,K (2491)-Luik,H (2234) Tallinn 2000}) 16. Bg5 $16 {[%emt 0:00:29]} h6 {[%emt 0:07:40]} 17. Bxf6 {[%emt 0:00:18]} Bxf6 {[%emt 0:00:04]} 18. g3 {[%emt 0:11:28]} Qc5 {[%emt 0:05:45]} 19. Ne3 {[%emt 0:07:42]} Bg5 {[%emt 0:03:23]} 20. Ncd5 {[%emt 0:03:29]} Nxd5 {[%emt 0:01:05]} 21. Nxd5 {[%emt 0:00:03]} Ra4 {[%emt 0:02:15]} 22. b4 {[%emt 0:06:50]} Qa7 {[%emt 0:02:50]} 23. Qe2 {[%emt 0:00:47]} Rb8 {[%emt 0:10:21]} 24. Rfb1 {[%emt 0:07:03][%cal Bf1b1,Bb1b2,Bb2c2,Bc2c7,Bc7c8][%mdl 32]} Ra3 {[%emt 0:02:42]} 25. Rb2 {[%emt 0:01:43]} Bd8 {[%emt 0:03:31]} 26. Rc1 {[%emt 0:01:31]} Bb6 {This costs Black the game.} (26... h5 $14) 27. Rc6 $1 $18 {[%emt 0:00:39]} Ra6 {[%emt 0:08:01]} (27... Kg7 $142 28. Kg2 (28. Rxd6 Bd4 $16) 28... Bd4) 28. Rbc2 {[%emt 0:02:44] Threatens to win with Rc8+.} ({And not} 28. Rxb6 Rbxb6 29. Nxb6 Qxb6 $11) 28... Bd8 {[%emt 0:04:00]} (28... Kh7 $142 29. Qf3 Ra3) 29. Rc8 {[%emt 0:02:38]} Kg7 {[%emt 0:00:30] [#]} 30. Rxd8 {[%emt 0:00:01][%mdl 512]} Rxd8 {[%emt 0:00:13]} 31. Rc7 Qb8 $2 {[%emt 0:01:23]} (31... Rxa2 32. Qf3 Qxf2+ 33. Qxf2 Rxf2 34. Kxf2 Ra8) 32. Qf3 {[%emt 0:00:44]} Rf8 {[%emt 0:00:09] [#]} 33. Qf6+ $1 {[%emt 0:00:06]} Kg8 {[%emt 0:00:28]} 34. Ne7+ {[%emt 0:00:24]} Kh7 {[%emt 0:00:13] [#]} 35. Rc8 $1 {[%emt 0:00:08][%mdl 512] Weighted Error Value: White=0.24 (precise) /Black=0.52} 1-0